[Event "*** Titled Tuesday Blitz"]
[Site "Chess.com"]
[Date "2021.04.27"]
[Round "9"]
[White "Gusarov91"]
[Black "NoboaKevin1999"]
[Result "1-0"]
[WhiteElo "2631"]
[BlackElo "2456"]
[TimeControl "180+1"]
[EndTime "11:43:27 PDT"]
[Termination "Gusarov91 won on time"]

1. d4 {[%clk 0:03:00.9]} 1... Nf6 {[%clk 0:02:59.6]} 2. Nf3 {[%clk 0:02:59.4]}
2... e6 {[%clk 0:02:59.5]} 3. c4 {[%clk 0:02:59.7]} 3... Bb4+ {[%clk 0:02:58.7]}
4. Bd2 {[%clk 0:02:59.6]} 4... Qe7 {[%clk 0:02:58.5]} 5. g3 {[%clk 0:02:59]}
5... Nc6 {[%clk 0:02:58]} 6. Bg2 {[%clk 0:02:59.4]} 6... Bxd2+ {[%clk
0:02:57.8]} 7. Nbxd2 {[%clk 0:02:58.9]} 7... d6 {[%clk 0:02:57.7]} 8. O-O {[%clk
0:02:59]} 8... a5 {[%clk 0:02:57.3]} 9. b3 {[%clk 0:02:58.5]} 9... O-O {[%clk
0:02:55.6]} 10. e3 {[%clk 0:02:56.9]} 10... e5 {[%clk 0:02:53.9]} 11. Qc2 {[%clk
0:02:56]} 11... Bg4 {[%clk 0:02:51]} 12. h3 {[%clk 0:02:55.7]} 12... Bh5 {[%clk
0:02:50.4]} 13. dxe5 {[%clk 0:02:50.1]} 13... dxe5 {[%clk 0:02:45.6]} 14. Nh4
{[%clk 0:02:49.6]} 14... Rfd8 {[%clk 0:02:39.5]} 15. Bxc6 {[%clk 0:02:32.1]}
15... bxc6 {[%clk 0:02:38.2]} 16. Nf5 {[%clk 0:02:28.3]} 16... Qe6 {[%clk
0:02:28.6]} 17. g4 {[%clk 0:02:27.5]} 17... Bg6 {[%clk 0:02:26.9]} 18. Nf3
{[%clk 0:02:25.8]} 18... h5 {[%clk 0:02:21.2]} 19. Ng5 {[%clk 0:02:18.4]} 19...
Qe8 {[%clk 0:02:08.6]} 20. f3 {[%clk 0:02:14.9]} 20... a4 {[%clk 0:01:38.3]} 21.
Rad1 {[%clk 0:02:11.4]} 21... axb3 {[%clk 0:01:36.8]} 22. axb3 {[%clk
0:02:10.4]} 22... hxg4 {[%clk 0:01:31.7]} 23. hxg4 {[%clk 0:02:06.7]} 23... Rxd1
{[%clk 0:01:18.4]} 24. Rxd1 {[%clk 0:02:05.5]} 24... Rd8 {[%clk 0:01:18.7]} 25.
Rd2 {[%clk 0:01:42]} 25... Rxd2 {[%clk 0:01:00.2]} 26. Qxd2 {[%clk 0:01:41.5]}
26... e4 {[%clk 0:00:58.9]} 27. Nxe4 {[%clk 0:01:19.1]} 27... Nxe4 {[%clk
0:00:57.5]} 28. fxe4 {[%clk 0:01:19.3]} 28... Qxe4 {[%clk 0:00:47.5]} 29. Qd8+
{[%clk 0:01:18.9]} 29... Kh7 {[%clk 0:00:46.7]} 30. Qh4+ {[%clk 0:01:19.6]}
30... Kg8 {[%clk 0:00:46]} 31. Ne7+ {[%clk 0:01:20.3]} 31... Kf8 {[%clk
0:00:45.7]} 32. Nxg6+ {[%clk 0:01:21]} 32... fxg6 {[%clk 0:00:38]} 33. Qd8+
{[%clk 0:01:21.5]} 33... Kf7 {[%clk 0:00:17.2]} 34. Qxc7+ {[%clk 0:01:21.5]}
34... Kg8 {[%clk 0:00:14.6]} 35. Qd8+ {[%clk 0:01:02.1]} 35... Kh7 {[%clk
0:00:11.1]} 36. Qd4 {[%clk 0:00:53]} 36... Qb1+ {[%clk 0:00:10.8]} 37. Kf2
{[%clk 0:00:52.8]} 37... Qxb3 {[%clk 0:00:10.8]} 38. Kf3 {[%clk 0:00:51.8]}
38... Qc2 {[%clk 0:00:10.3]} 39. Kf4 {[%clk 0:00:51.1]} 39... Qh2+ {[%clk
0:00:09.2]} 40. Ke4 {[%clk 0:00:50]} 40... Qg2+ {[%clk 0:00:07.1]} 41. Ke5
{[%clk 0:00:50.4]} 41... Qg3+ {[%clk 0:00:03.3]} 42. Qf4 {[%clk 0:00:47.3]}
42... Qe1 {[%clk 0:00:03.4]} 43. Kd6 {[%clk 0:00:45.9]} 43... Qh1 {[%clk
0:00:03.2]} 44. e4 {[%clk 0:00:42.1]} 44... Qe1 {[%clk 0:00:01.1]} 45. e5 {[%clk
0:00:39.5]} 1-0

[Event "*** Titled Tuesday Blitz"]
[Site "Chess.com"]
[Date "2021.04.27"]
[Round "9"]
[White "Orest_Vovk"]
[Black "ehrenfeld"]
[Result "1-0"]
[WhiteElo "2384"]
[BlackElo "2501"]
[TimeControl "180+1"]
[EndTime "11:43:29 PDT"]
[Termination "Orest_Vovk won on time"]

1. h3 {[%clk 0:02:59]} 1... e5 {[%clk 0:02:45.2]} 2. d4 {[%clk 0:02:53.6]} 2...
exd4 {[%clk 0:02:44]} 3. Qxd4 {[%clk 0:02:54.5]} 3... Nc6 {[%clk 0:02:43.9]} 4.
Qe4+ {[%clk 0:02:51.5]} 4... Be7 {[%clk 0:02:43.2]} 5. Nc3 {[%clk 0:02:50.5]}
5... Nf6 {[%clk 0:02:42.5]} 6. Qf4 {[%clk 0:02:45.7]} 6... d5 {[%clk 0:02:42]}
7. Bd2 {[%clk 0:02:36.5]} 7... O-O {[%clk 0:02:39.8]} 8. O-O-O {[%clk
0:02:35.7]} 8... d4 {[%clk 0:02:14.8]} 9. Ne4 {[%clk 0:02:30.4]} 9... Qd5 {[%clk
0:02:06.8]} 10. Nxf6+ {[%clk 0:02:28.9]} 10... Bxf6 {[%clk 0:02:06.5]} 11. Kb1
{[%clk 0:02:27.2]} 11... Be6 {[%clk 0:02:06.3]} 12. b3 {[%clk 0:02:22.8]} 12...
a5 {[%clk 0:02:00.5]} 13. e4 {[%clk 0:02:07.1]} 13... dxe3 {[%clk 0:01:58.5]}
14. fxe3 {[%clk 0:01:45.5]} 14... a4 {[%clk 0:01:34.2]} 15. Bc4 {[%clk
0:01:41.2]} 15... axb3 {[%clk 0:01:24.5]} 16. Bxd5 {[%clk 0:01:32.1]} 16...
bxa2+ {[%clk 0:01:21.3]} 17. Bxa2 {[%clk 0:01:31.6]} 17... Rxa2 {[%clk
0:01:21.1]} 18. c4 {[%clk 0:00:59.9]} 18... Rb2+ {[%clk 0:01:04.8]} 19. Kc1
{[%clk 0:00:52]} 19... Ra8 {[%clk 0:01:04.3]} 20. Qxf6 {[%clk 0:00:46.9]} 20...
Rxd2 {[%clk 0:00:43.5]} 21. Qc3 {[%clk 0:00:16.3]} 21... Rda2 {[%clk 0:00:43.2]}
22. Nf3 {[%clk 0:00:11.3]} 22... Bf5 {[%clk 0:00:41.7]} 23. Nd4 {[%clk
0:00:05.6]} 23... Bg6 {[%clk 0:00:30.1]} 24. Rhf1 {[%clk 0:00:03.5]} 24... Ne5
{[%clk 0:00:25.9]} 25. Nf5 {[%clk 0:00:02.4]} 25... f6 {[%clk 0:00:20.3]} 26.
Ne7+ {[%clk 0:00:01.5]} 26... Kh8 {[%clk 0:00:17.5]} 27. Nxg6+ {[%clk
0:00:02.4]} 27... hxg6 {[%clk 0:00:17.4]} 28. Rfe1 {[%clk 0:00:02.6]} 28... R8a4
{[%clk 0:00:07.6]} 29. Rd8+ {[%clk 0:00:01.9]} 29... Kh7 {[%clk 0:00:07.1]} 30.
Rd4 {[%clk 0:00:01.9]} 30... c5 {[%clk 0:00:04.2]} 31. Rh4+ {[%clk 0:00:02.1]}
31... Kg8 {[%clk 0:00:04.3]} 32. Qb3 {[%clk 0:00:02.8]} 32... R4a3 {[%clk
0:00:02.6]} 33. Qxa2 {[%clk 0:00:02.5]} 33... Rxa2 {[%clk 0:00:02.2]} 34. Kb1
{[%clk 0:00:03.4]} 1-0

[Event "*** Titled Tuesday Blitz"]
[Site "Chess.com"]
[Date "2021.04.27"]
[Round "9"]
[White "UKR_Master"]
[Black "suyu28"]
[Result "1-0"]
[WhiteElo "2496"]
[BlackElo "2621"]
[TimeControl "180+1"]
[EndTime "11:43:34 PDT"]
[Termination "UKR_Master won on time"]

1. e4 {[%clk 0:02:59.4]} 1... c6 {[%clk 0:01:37]} 2. Nf3 {[%clk 0:02:57.8]} 2...
d5 {[%clk 0:01:36.6]} 3. Nc3 {[%clk 0:02:58.4]} 3... g6 {[%clk 0:01:36.5]} 4. g3
{[%clk 0:02:57.8]} 4... Bg7 {[%clk 0:01:37]} 5. Bg2 {[%clk 0:02:55.1]} 5... d4
{[%clk 0:01:34.4]} 6. Ne2 {[%clk 0:02:54.7]} 6... c5 {[%clk 0:01:34.9]} 7. O-O
{[%clk 0:02:54.6]} 7... Nc6 {[%clk 0:01:35.3]} 8. d3 {[%clk 0:02:55]} 8... e5
{[%clk 0:01:35.6]} 9. a4 {[%clk 0:02:53.3]} 9... Nge7 {[%clk 0:01:35.5]} 10. Nd2
{[%clk 0:02:53.1]} 10... O-O {[%clk 0:01:34.6]} 11. f4 {[%clk 0:02:53.5]} 11...
f6 {[%clk 0:01:33.1]} 12. h3 {[%clk 0:02:43.6]} 12... Be6 {[%clk 0:01:32.7]} 13.
g4 {[%clk 0:02:42.5]} 13... f5 {[%clk 0:01:32.9]} 14. g5 {[%clk 0:02:31.6]}
14... fxe4 {[%clk 0:01:30.7]} 15. Nxe4 {[%clk 0:02:31]} 15... b6 {[%clk
0:01:30.9]} 16. Bd2 {[%clk 0:02:25.5]} 16... Nd5 {[%clk 0:01:30.6]} 17. Qe1
{[%clk 0:02:17.6]} 17... Qd7 {[%clk 0:01:29]} 18. Qg3 {[%clk 0:02:16.7]} 18...
Ne3 {[%clk 0:01:19.4]} 19. Bxe3 {[%clk 0:02:00.5]} 19... dxe3 {[%clk 0:01:20.3]}
20. fxe5 {[%clk 0:01:59]} 20... Bxe5 {[%clk 0:01:19.2]} 21. Qxe3 {[%clk
0:01:54.8]} 21... Bxb2 {[%clk 0:01:13.6]} 22. Nf6+ {[%clk 0:01:54.6]} 22... Bxf6
{[%clk 0:01:03.5]} 23. gxf6 {[%clk 0:01:54.5]} 23... Bd5 {[%clk 0:00:58.4]} 24.
Bxd5+ {[%clk 0:01:12.4]} 24... Qxd5 {[%clk 0:00:59.3]} 25. Qh6 {[%clk
0:01:13.2]} 25... Rf7 {[%clk 0:00:55]} 26. Ng3 {[%clk 0:01:11.1]} 26... Qd4+
{[%clk 0:00:50.6]} 27. Kh2 {[%clk 0:01:07]} 27... Rxf6 {[%clk 0:00:45.7]} 28.
Rxf6 {[%clk 0:01:07.6]} 28... Qxf6 {[%clk 0:00:45.6]} 29. Rf1 {[%clk 0:01:08.2]}
29... Qg7 {[%clk 0:00:43.4]} 30. Qg5 {[%clk 0:01:07]} 30... Rd8 {[%clk
0:00:32.2]} 31. Rf6 {[%clk 0:00:58.4]} 31... Ne7 {[%clk 0:00:17.6]} 32. Ne4
{[%clk 0:00:55]} 32... Rf8 {[%clk 0:00:14]} 33. Re6 {[%clk 0:00:34.1]} 33... Nf5
{[%clk 0:00:13.1]} 34. Nf6+ {[%clk 0:00:31.2]} 34... Kh8 {[%clk 0:00:13.3]} 35.
Ne4 {[%clk 0:00:26.8]} 35... Qc7+ {[%clk 0:00:09.9]} 36. Kg2 {[%clk 0:00:25.1]}
36... Qf7 {[%clk 0:00:08.3]} 37. Rf6 {[%clk 0:00:24]} 37... Qg7 {[%clk
0:00:08.7]} 38. Re6 {[%clk 0:00:22]} 38... Nd4 {[%clk 0:00:08.2]} 39. Re7 {[%clk
0:00:20.4]} 39... Qg8 {[%clk 0:00:06.6]} 40. Qe5+ {[%clk 0:00:18.5]} 1-0

[Event "*** Titled Tuesday Blitz"]
[Site "Chess.com"]
[Date "2021.04.27"]
[Round "9"]
[White "tapu2"]
[Black "serhanberat_ozdemir"]
[Result "1-0"]
[WhiteElo "2730"]
[BlackElo "2585"]
[TimeControl "180+1"]
[EndTime "11:43:35 PDT"]
[Termination "tapu2 won on time"]

1. e4 {[%clk 0:03:00.9]} 1... c5 {[%clk 0:03:00]} 2. Nc3 {[%clk 0:03:00]} 2...
e6 {[%clk 0:03:00.1]} 3. f4 {[%clk 0:02:59.6]} 3... d5 {[%clk 0:03:00.4]} 4. Nf3
{[%clk 0:02:59.7]} 4... dxe4 {[%clk 0:03:00.7]} 5. Nxe4 {[%clk 0:02:59.1]} 5...
Be7 {[%clk 0:03:01.4]} 6. Bb5+ {[%clk 0:02:57.4]} 6... Bd7 {[%clk 0:02:59.1]} 7.
Bc4 {[%clk 0:02:55.1]} 7... Nf6 {[%clk 0:02:57.7]} 8. d3 {[%clk 0:02:40]} 8...
Bc6 {[%clk 0:02:24.8]} 9. Qe2 {[%clk 0:02:38.9]} 9... b5 {[%clk 0:02:20.6]} 10.
Nxf6+ {[%clk 0:02:38.2]} 10... Bxf6 {[%clk 0:02:21.5]} 11. Bb3 {[%clk
0:02:38.4]} 11... O-O {[%clk 0:02:21]} 12. a4 {[%clk 0:02:33.1]} 12... a6 {[%clk
0:02:21.3]} 13. axb5 {[%clk 0:02:31.9]} 13... axb5 {[%clk 0:02:22]} 14. Rxa8
{[%clk 0:02:31.2]} 14... Bxa8 {[%clk 0:02:22.9]} 15. Ne5 {[%clk 0:02:21.3]}
15... Nc6 {[%clk 0:02:10.3]} 16. Nxc6 {[%clk 0:02:20.1]} 16... Bxc6 {[%clk
0:02:11.2]} 17. O-O {[%clk 0:02:20.7]} 17... Bd4+ {[%clk 0:02:03.5]} 18. Be3
{[%clk 0:02:17.1]} 18... Qf6 {[%clk 0:02:03.4]} 19. c3 {[%clk 0:02:14]} 19...
Bxe3+ {[%clk 0:01:56.9]} 20. Qxe3 {[%clk 0:02:14.9]} 20... Qf5 {[%clk
0:01:34.6]} 21. Bd1 {[%clk 0:02:13]} 21... Rd8 {[%clk 0:01:26.1]} 22. Be2 {[%clk
0:02:11.3]} 22... Qd5 {[%clk 0:01:23.4]} 23. Bf3 {[%clk 0:02:11.2]} 23... Qd6
{[%clk 0:01:20.1]} 24. Bxc6 {[%clk 0:02:10.3]} 24... Qxc6 {[%clk 0:01:21]} 25.
Rd1 {[%clk 0:02:10.9]} 25... g6 {[%clk 0:01:18.6]} 26. d4 {[%clk 0:02:09.7]}
26... cxd4 {[%clk 0:01:14.4]} 27. Rxd4 {[%clk 0:02:09.3]} 27... Ra8 {[%clk
0:01:08.5]} 28. h3 {[%clk 0:02:00.5]} 28... h5 {[%clk 0:01:07.9]} 29. Qe5 {[%clk
0:01:56.4]} 29... Rc8 {[%clk 0:00:47.5]} 30. Kh2 {[%clk 0:01:46.8]} 30... Ra8
{[%clk 0:00:41.2]} 31. Qf6 {[%clk 0:01:29.3]} 31... Qc7 {[%clk 0:00:22.9]} 32.
Rd1 {[%clk 0:00:58.4]} 32... Re8 {[%clk 0:00:21.5]} 33. Rd4 {[%clk 0:00:49.2]}
33... e5 {[%clk 0:00:17.3]} 34. Re4 {[%clk 0:00:46]} 34... Re6 {[%clk
0:00:17.2]} 35. Qg5 {[%clk 0:00:45.5]} 35... Kg7 {[%clk 0:00:13.7]} 36. fxe5
{[%clk 0:00:45.2]} 36... f6 {[%clk 0:00:12.6]} 37. Qf4 {[%clk 0:00:42.9]} 37...
Rxe5 {[%clk 0:00:10.2]} 38. Rxe5 {[%clk 0:00:43.1]} 38... fxe5 {[%clk 0:00:08]}
39. Qe4 {[%clk 0:00:43.4]} 39... Qd6 {[%clk 0:00:05.3]} 40. Qb7+ {[%clk
0:00:43]} 40... Kf6 {[%clk 0:00:05.3]} 41. Qxb5 {[%clk 0:00:41.7]} 41... e4+
{[%clk 0:00:01.8]} 42. Kg1 {[%clk 0:00:42.3]} 42... Qd1+ {[%clk 0:00:01.9]} 43.
Qf1+ {[%clk 0:00:42.9]} 1-0

[Event "*** Titled Tuesday Blitz"]
[Site "Chess.com"]
[Date "2021.04.27"]
[Round "9"]
[White "DarZay"]
[Black "WiktoriaPOL"]
[Result "1-0"]
[WhiteElo "2163"]
[BlackElo "2023"]
[TimeControl "180+1"]
[EndTime "11:43:36 PDT"]
[Termination "DarZay won by resignation"]

1. e4 {[%clk 0:03:00.9]} 1... c5 {[%clk 0:02:59.5]} 2. Nc3 {[%clk 0:03:00.6]}
2... Nc6 {[%clk 0:02:58.2]} 3. f4 {[%clk 0:03:00.9]} 3... g6 {[%clk 0:02:57.9]}
4. Nf3 {[%clk 0:03:01.1]} 4... Bg7 {[%clk 0:02:57.9]} 5. e5 {[%clk 0:02:59.4]}
5... d6 {[%clk 0:02:57.1]} 6. Bb5 {[%clk 0:02:54.2]} 6... a6 {[%clk 0:02:55]} 7.
Bxc6+ {[%clk 0:02:52.9]} 7... bxc6 {[%clk 0:02:55.9]} 8. Ne4 {[%clk 0:02:46.2]}
8... Bf5 {[%clk 0:02:50.4]} 9. Qe2 {[%clk 0:02:45.2]} 9... Bxe4 {[%clk
0:02:24.8]} 10. Qxe4 {[%clk 0:02:44.9]} 10... d5 {[%clk 0:02:25.3]} 11. Qa4
{[%clk 0:02:44.6]} 11... Qc7 {[%clk 0:02:22.2]} 12. O-O {[%clk 0:02:35.1]} 12...
e6 {[%clk 0:02:18.8]} 13. d4 {[%clk 0:02:34.6]} 13... c4 {[%clk 0:02:14.1]} 14.
b3 {[%clk 0:02:31.5]} 14... cxb3 {[%clk 0:02:07.1]} 15. cxb3 {[%clk 0:02:30.8]}
15... Ne7 {[%clk 0:02:05.2]} 16. Ba3 {[%clk 0:02:30.9]} 16... O-O {[%clk
0:01:57.9]} 17. Bd6 {[%clk 0:02:28.8]} 17... Qd7 {[%clk 0:01:56.5]} 18. Rac1
{[%clk 0:02:26.3]} 18... Rfc8 {[%clk 0:01:50.3]} 19. Bxe7 {[%clk 0:02:23.1]}
19... Qxe7 {[%clk 0:01:50]} 20. Rxc6 {[%clk 0:02:23.5]} 20... Qb7 {[%clk
0:01:49.2]} 21. Rfc1 {[%clk 0:02:21.1]} 21... Bf8 {[%clk 0:01:41.6]} 22. a3
{[%clk 0:02:08.8]} 22... Rxc6 {[%clk 0:01:33.2]} 23. Rxc6 {[%clk 0:02:07.2]}
23... Rc8 {[%clk 0:01:32.9]} 24. Rxa6 {[%clk 0:01:49.1]} 24... Rc1+ {[%clk
0:01:30.1]} 25. Kf2 {[%clk 0:01:49.2]} 25... Rc2+ {[%clk 0:01:18.9]} 26. Kg3
{[%clk 0:01:43.8]} 26... Rc3 {[%clk 0:00:49.6]} 27. Ra8 {[%clk 0:01:40.5]} 27...
Rc6 {[%clk 0:00:23.9]} 28. b4 {[%clk 0:01:25.6]} 28... f6 {[%clk 0:00:08.6]} 29.
exf6 {[%clk 0:01:24.4]} 29... Rc8 {[%clk 0:00:02.7]} 30. Rxc8 {[%clk 0:01:22.5]}
30... Qxc8 {[%clk 0:00:03.6]} 31. Qb3 {[%clk 0:01:21.6]} 31... Qd8 {[%clk
0:00:03.7]} 32. b5 {[%clk 0:01:13.5]} 32... Qxf6 {[%clk 0:00:03]} 33. b6 {[%clk
0:01:13.6]} 33... Bd6 {[%clk 0:00:02.5]} 34. Ne5 {[%clk 0:01:10.9]} 34... g5
{[%clk 0:00:02.7]} 35. Qf3 {[%clk 0:01:00.2]} 35... gxf4+ {[%clk 0:00:01.4]} 36.
Qxf4 {[%clk 0:00:59.9]} 36... Qe7 {[%clk 0:00:01.4]} 37. Qg4+ {[%clk 0:00:54.6]}
37... Kh8 {[%clk 0:00:01.6]} 38. Kh3 {[%clk 0:00:45.6]} 38... Bxe5 {[%clk
0:00:01.7]} 39. dxe5 {[%clk 0:00:45.5]} 39... Qxa3+ {[%clk 0:00:02.2]} 40. g3
{[%clk 0:00:43.5]} 40... Qe7 {[%clk 0:00:02.2]} 41. Qh4 {[%clk 0:00:38.7]} 41...
Qf7 {[%clk 0:00:02.1]} 42. Qf6+ {[%clk 0:00:38.7]} 42... Qxf6 {[%clk 0:00:02]}
43. exf6 {[%clk 0:00:38.9]} 43... d4 {[%clk 0:00:02.3]} 44. b7 {[%clk
0:00:38.9]} 44... Kg8 {[%clk 0:00:03]} 45. b8=Q+ {[%clk 0:00:38.2]} 45... Kf7
{[%clk 0:00:03.9]} 46. Qe5 {[%clk 0:00:37.3]} 46... d3 {[%clk 0:00:03.3]} 47.
Qd4 {[%clk 0:00:37.2]} 1-0

[Event "*** Titled Tuesday Blitz"]
[Site "Chess.com"]
[Date "2021.04.27"]
[Round "9"]
[White "lucachess49"]
[Black "Andrakhanova"]
[Result "1-0"]
[WhiteElo "2423"]
[BlackElo "2282"]
[TimeControl "180+1"]
[EndTime "11:43:39 PDT"]
[Termination "lucachess49 won by resignation"]

1. d4 {[%clk 0:02:56.1]} 1... d5 {[%clk 0:02:50.9]} 2. c4 {[%clk 0:02:55.1]}
2... e6 {[%clk 0:02:50]} 3. Nc3 {[%clk 0:02:51.4]} 3... c6 {[%clk 0:02:43.8]} 4.
e3 {[%clk 0:02:39.3]} 4... Nf6 {[%clk 0:02:43.1]} 5. Nf3 {[%clk 0:02:09.6]} 5...
Nbd7 {[%clk 0:02:42.8]} 6. Qc2 {[%clk 0:02:09.3]} 6... Bd6 {[%clk 0:02:41.5]} 7.
Bd3 {[%clk 0:02:09.3]} 7... O-O {[%clk 0:02:40.9]} 8. O-O {[%clk 0:02:09.4]}
8... h6 {[%clk 0:02:41.2]} 9. b3 {[%clk 0:02:09.2]} 9... Re8 {[%clk 0:02:39.4]}
10. Bb2 {[%clk 0:02:09.2]} 10... Qe7 {[%clk 0:02:39.2]} 11. e4 {[%clk
0:02:03.4]} 11... dxc4 {[%clk 0:02:38.1]} 12. Bxc4 {[%clk 0:01:28]} 12... e5
{[%clk 0:02:37.2]} 13. Ne2 {[%clk 0:01:27.9]} 13... exd4 {[%clk 0:02:30.6]} 14.
Nexd4 {[%clk 0:01:27.1]} 14... Ne5 {[%clk 0:02:24.5]} 15. Nxe5 {[%clk
0:01:09.9]} 15... Bxe5 {[%clk 0:02:25.4]} 16. Rae1 {[%clk 0:01:06.4]} 16... c5
{[%clk 0:02:17.7]} 17. Nf3 {[%clk 0:00:55]} 17... Bxb2 {[%clk 0:02:15.7]} 18.
Qxb2 {[%clk 0:00:55.9]} 18... Bg4 {[%clk 0:02:00.2]} 19. Nd2 {[%clk 0:00:51.2]}
19... Rad8 {[%clk 0:01:50]} 20. e5 {[%clk 0:00:47.5]} 20... Nd5 {[%clk
0:01:47.5]} 21. h3 {[%clk 0:00:46.8]} 21... Bf5 {[%clk 0:01:42.8]} 22. Nf3
{[%clk 0:00:34.2]} 22... Nf4 {[%clk 0:01:33]} 23. Qc1 {[%clk 0:00:24.9]} 23...
Nd3 {[%clk 0:01:22.7]} 24. Qe3 {[%clk 0:00:23.5]} 24... Nxe1 {[%clk 0:01:21.2]}
25. Rxe1 {[%clk 0:00:24.4]} 25... a6 {[%clk 0:01:13]} 26. a4 {[%clk 0:00:24]}
26... Rd7 {[%clk 0:01:05]} 27. Qf4 {[%clk 0:00:19.1]} 27... Be6 {[%clk
0:01:03.8]} 28. Nd2 {[%clk 0:00:17.5]} 28... Rd4 {[%clk 0:00:58.1]} 29. Qe3
{[%clk 0:00:16.6]} 29... Red8 {[%clk 0:00:56.4]} 30. Bxe6 {[%clk 0:00:16.5]}
30... Qxe6 {[%clk 0:00:57.3]} 31. Nc4 {[%clk 0:00:16.5]} 31... Rd3 {[%clk
0:00:57.4]} 32. Qe4 {[%clk 0:00:13.1]} 32... Rxb3 {[%clk 0:00:55.7]} 33. Nd6
{[%clk 0:00:13]} 33... Rb4 {[%clk 0:00:52.9]} 34. Qe3 {[%clk 0:00:10.8]} 34...
b6 {[%clk 0:00:50.6]} 35. f4 {[%clk 0:00:10.7]} 35... g6 {[%clk 0:00:48.2]} 36.
g4 {[%clk 0:00:09.9]} 36... Rxa4 {[%clk 0:00:43.6]} 37. f5 {[%clk 0:00:09.9]}
37... gxf5 {[%clk 0:00:44.5]} 38. gxf5 {[%clk 0:00:10.6]} 38... Qd5 {[%clk
0:00:37.1]} 39. Qxh6 {[%clk 0:00:07.4]} 39... Qd4+ {[%clk 0:00:23.2]} 40. Kh1
{[%clk 0:00:07.1]} 40... Qh4 {[%clk 0:00:21.8]} 41. Rg1+ {[%clk 0:00:04.8]} 1-0

[Event "*** Titled Tuesday Blitz"]
[Site "Chess.com"]
[Date "2021.04.27"]
[Round "9"]
[White "Jumbo"]
[Black "Zhigalko_Sergei"]
[Result "0-1"]
[WhiteElo "2783"]
[BlackElo "2940"]
[TimeControl "180+1"]
[EndTime "11:43:41 PDT"]
[Termination "Zhigalko_Sergei won on time"]

1. d4 {[%clk 0:03:00.9]} 1... Nf6 {[%clk 0:02:58.8]} 2. Nf3 {[%clk 0:03:01.4]}
2... e6 {[%clk 0:02:59.1]} 3. Bf4 {[%clk 0:03:01.9]} 3... d5 {[%clk 0:02:59.1]}
4. e3 {[%clk 0:03:02.2]} 4... Bd6 {[%clk 0:02:59.8]} 5. Bg3 {[%clk 0:03:02.7]}
5... O-O {[%clk 0:03:00]} 6. c4 {[%clk 0:03:03]} 6... b6 {[%clk 0:02:54.9]} 7.
Nc3 {[%clk 0:02:52.8]} 7... Bb7 {[%clk 0:02:49.2]} 8. Qc2 {[%clk 0:02:52.7]}
8... Nbd7 {[%clk 0:02:47.6]} 9. a3 {[%clk 0:02:25.5]} 9... Rc8 {[%clk
0:02:44.6]} 10. cxd5 {[%clk 0:02:22.6]} 10... Nxd5 {[%clk 0:02:26.1]} 11. Nxd5
{[%clk 0:02:14.2]} 11... Bxd5 {[%clk 0:02:26]} 12. Ba6 {[%clk 0:02:14.2]} 12...
Rb8 {[%clk 0:02:26.3]} 13. Rc1 {[%clk 0:01:21.5]} 13... b5 {[%clk 0:01:54.6]}
14. e4 {[%clk 0:01:20.4]} 14... Ba8 {[%clk 0:01:53.9]} 15. e5 {[%clk 0:00:56.4]}
15... Be7 {[%clk 0:01:52.3]} 16. Qxc7 {[%clk 0:00:56.8]} 16... Bd5 {[%clk
0:00:46.2]} 17. O-O {[%clk 0:00:45]} 17... Bc4 {[%clk 0:00:41.3]} 18. Rxc4
{[%clk 0:00:10.3]} 18... bxc4 {[%clk 0:00:41.4]} 19. Qxc4 {[%clk 0:00:10.1]}
19... Rxb2 {[%clk 0:00:41.3]} 20. a4 {[%clk 0:00:09.4]} 20... Nb6 {[%clk
0:00:29.5]} 21. Qc6 {[%clk 0:00:09.4]} 21... Qd5 {[%clk 0:00:20.6]} 22. Qc7
{[%clk 0:00:08.7]} 22... Qd7 {[%clk 0:00:20.6]} 23. Qxd7 {[%clk 0:00:08.2]}
23... Nxd7 {[%clk 0:00:21.5]} 24. Bb5 {[%clk 0:00:08.8]} 24... Nb6 {[%clk
0:00:20.6]} 25. Ra1 {[%clk 0:00:07.9]} 25... Rc8 {[%clk 0:00:18.9]} 26. h4
{[%clk 0:00:08]} 26... h6 {[%clk 0:00:17.7]} 27. h5 {[%clk 0:00:08]} 27... Nd5
{[%clk 0:00:17.6]} 28. Bd3 {[%clk 0:00:06]} 28... Rb3 {[%clk 0:00:10.5]} 29. Ba6
{[%clk 0:00:05.4]} 29... Rcc3 {[%clk 0:00:08.2]} 30. Nd2 {[%clk 0:00:04.4]}
30... Rb6 {[%clk 0:00:05.5]} 31. Bb5 {[%clk 0:00:03.7]} 31... Rb8 {[%clk
0:00:04.7]} 32. Ne4 {[%clk 0:00:03.3]} 32... Rc2 {[%clk 0:00:04.6]} 33. Nd6
{[%clk 0:00:02.3]} 33... Rb2 {[%clk 0:00:04.9]} 34. Rc1 {[%clk 0:00:01.5]} 34...
Kf8 {[%clk 0:00:02.1]} 35. Rc6 {[%clk 0:00:02]} 35... Rb1+ {[%clk 0:00:01.2]}
0-1